bitfinex/quotes_BTCUSD_20240613
["timestamp","ask_amount","ask_price","bid_price","bid_amount"]
[1718297928745,0.00884302,66961.0,66960.0,1.299123]
[1718297929208,0.00884302,66961.0,66960.0,1.312123]
[1718297929411,0.00884302,66961.0,66960.0,1.71386293]
[1718297929610,0.00884302,66961.0,66960.0,1.70386293]
[1718297929906,0.00884302,66961.0,66960.0,1.67686293]
[1718297930099,0.00884302,66961.0,66960.0,1.48236293]
[1718297930320,0.00884302,66961.0,66960.0,1.041358]
[1718297930444,0.00884302,66961.0,66960.0,1.027358]
[1718297930882,0.00884302,66961.0,66960.0,1.030358]
[1718297931093,2e-08,66961.0,66960.0,1.47336293]
[1718297931301,2e-08,66961.0,66960.0,1.85826293]
[1718297931712,2.9e-07,66967.0,66966.0,1.40257092]
[1718297931916,2.9e-07,66967.0,66966.0,0.73001288]
[1718297932131,2.9e-07,66967.0,66966.0,1.02867188]
[1718297932330,2.9e-07,66967.0,66966.0,0.339249]
[1718297932546,2.9e-07,66967.0,66966.0,0.35919392]
[1718297933591,2.9e-07,66967.0,66966.0,0.65785292]
[1718297933795,2.9e-07,66967.0,66966.0,0.113]
[1718297934005,2.9e-07,66967.0,66966.0,0.54093292]
[1718297934221,2.9e-07,66967.0,66966.0,0.93959192]
[1718297934437,2.9e-07,66967.0,66966.0,0.95359192]
[1718297934646,2.9e-07,66967.0,66966.0,1.25225092]
[1718297935048,2.9e-07,66967.0,66966.0,1.23825092]
[1718297935250,2.9e-07,66967.0,66966.0,1.42249085]
[1718297935423,2.9e-07,66967.0,66966.0,1.44549085]
[1718297935629,2.9e-07,66967.0,66966.0,1.14683185]
[1718297935835,2.9e-07,66967.0,66966.0,0.99251192]
[1718297936040,2.9e-07,66967.0,66966.0,0.69385292]
[1718297936242,2.9e-07,66967.0,66966.0,0.96951192]
[1718297936456,2.9e-07,66967.0,66966.0,0.95651192]
[1718297936689,2.9e-07,66967.0,66966.0,0.97051192]
[1718297936886,2.9e-07,66967.0,66966.0,0.67085292]
[1718297937111,2.9e-07,66967.0,66966.0,0.96951192]
[1718297937287,2.9e-07,66967.0,66966.0,1.27913988]
[1718297937491,2.9e-07,66967.0,66966.0,1.28013988]
[1718297937755,2.9e-07,66967.0,66966.0,1.27613988]
[1718297937962,2.9e-07,66967.0,66966.0,1.58779888]
[1718297938165,2.9e-07,66967.0,66966.0,1.60179888]
[1718297938381,2.9e-07,66967.0,66966.0,1.31203322]
[1718297938592,2.9e-07,66967.0,66966.0,1.29803322]
[1718297939022,2.9e-07,66967.0,66966.0,1.28803322]
[1718297939225,2.9e-07,66967.0,66966.0,1.51561977]
[1718297939400,2.9e-07,66967.0,66966.0,1.81427877]
[1718297939554,2.9e-07,66967.0,66966.0,1.51765081]
[1718297939755,2.9e-07,66967.0,66966.0,1.00347648]
[1718297939983,2.9e-07,66967.0,66966.0,1.36129544]
[1718297940311,2.9e-07,66967.0,66966.0,1.05263644]
[1718297940517,2.9e-07,66967.0,66966.0,1.36129544]
[1718297940720,2.9e-07,66967.0,66966.0,1.37529544]
[1718297940897,2.9e-07,66967.0,66966.0,1.84127437]
[1718297941098,2.9e-07,66967.0,66966.0,1.82727437]
[1718297941306,2.9e-07,66967.0,66966.0,2.06430488]
[1718297941509,2.9e-07,66967.0,66966.0,2.06530488]
[1718297942087,2.9e-07,66967.0,66966.0,1.75664588]
[1718297942285,0.3019,66978.0,66977.0,0.07994492]
[1718297942483,0.3019,66978.0,66977.0,0.22924892]
[1718297942757,0.00018023,66982.0,66977.0,0.22924892]
[1718297942758,0.00018023,66982.0,66981.0,1.12501692]
[1718297942943,0.00018023,66982.0,66981.0,1.67167099]
[1718297943183,0.00018023,66982.0,66981.0,1.77167099]
[1718297943387,0.00018023,66982.0,66981.0,2.13349092]
[1718297943596,0.00018023,66982.0,66981.0,2.62940292]
[1718297943597,2.3e-07,66982.0,66981.0,2.62940292]
[1718297943815,2.3e-07,66982.0,66981.0,2.33081092]
[1718297944233,0.00940501,66989.0,66988.0,0.00994492]
[1718297944438,0.00940501,66989.0,66988.0,1.40614841]
[1718297944652,0.00940501,66989.0,66988.0,0.60148966]
[1718297944862,0.00940501,66989.0,66988.0,0.39196906]
[1718297945080,0.14280501,66989.0,66988.0,0.39196906]
[1718297945292,0.00940501,66989.0,66988.0,0.39196906]
[1718297945506,0.00940501,66989.0,66988.0,0.54124906]
[1718297945710,0.00940501,66989.0,66988.0,0.86480958]
[1718297945957,0.00940501,66989.0,66988.0,0.5543276]
[1718297946169,0.00940501,66989.0,66988.0,0.66460534]
[1718297946430,0.60220294,66989.0,66988.0,0.2550476]
[1718297946631,0.60220294,66989.0,66982.0,0.0744476]
[1718297946632,0.1673,66988.0,66982.0,0.0744476]
[1718297946880,0.14431993,66987.0,66982.0,0.0744476]
[1718297947150,0.1673,66988.0,66987.0,0.05]
[1718297947748,0.1673,66988.0,66987.0,0.199282]
[1718297948379,0.00940501,66989.0,66988.0,0.20928]
[1718297948564,0.00940501,66989.0,66988.0,0.32922492]
[1718297948771,0.00940501,66989.0,66988.0,0.62778492]
[1718297949362,0.00940501,66989.0,66988.0,0.29928]
[1718297949576,0.00940501,66989.0,66988.0,0.15]
[1718297949782,0.00940501,66989.0,66988.0,0.52778492]
[1718297949992,0.00940501,66989.0,66988.0,0.92634492]
[1718297950224,0.00940501,66989.0,66988.0,1.24477586]
[1718297950437,0.00940501,66989.0,66988.0,1.40321174]
[1718297950652,0.00940501,66989.0,66988.0,1.43313174]
[1718297950915,0.01040501,66989.0,66988.0,1.44513174]
[1718297951470,0.00940501,66989.0,66988.0,1.8188517]
[1718297951671,0.01040501,66989.0,66988.0,1.8228517]
[1718297951886,1e-08,66989.0,66988.0,2.2587517]
[1718297952134,0.00940501,67014.0,66999.0,0.52771092]
[1718297952331,0.00940501,67014.0,66999.0,0.79503085]
[1718297952529,0.00940501,67014.0,66999.0,0.35219992]
[1718297952880,0.00940501,67014.0,66999.0,0.309255]
[1718297953281,0.149232,67010.0,66999.0,0.16]
[1718297953515,0.149264,66996.0,66993.0,0.05]
[1718297953712,2.95651993,67000.0,66989.0,0.05]
[1718297953938,2.95651993,67000.0,66993.0,0.05]
[1718297954185,2.8122,67000.0,66998.0,0.05]
[1718297954640,2.95651993,67000.0,66988.0,0.05]
[1718297954818,2.95651993,67000.0,66987.0,0.05]
[1718297954819,0.14431993,66999.0,66987.0,0.05]
[1718297955044,0.149264,66996.0,66986.0,0.05]
[1718297955182,0.14431993,66995.0,66993.0,0.009]
[1718297955387,0.14431993,66995.0,66993.0,0.004]
[1718297955588,2.8122,67000.0,66994.0,0.05]
[1718297956035,2.8162,67000.0,66998.0,0.05]
[1718297956235,2.8162,67000.0,66999.0,0.149255]
[1718297956435,2.8162,67000.0,66999.0,0.199255]
[1718297956639,2.504,67000.0,66999.0,0.199255]
[1718297956841,2.504,67000.0,66999.0,0.05]
[1718297957311,2.5,67000.0,66994.0,0.159697]
[1718297957532,2.5,67000.0,66994.0,0.1]
[1718297957851,0.288563,66996.0,66994.0,0.1]
[1718297958061,0.288563,66996.0,66992.0,0.15]
[1718297958062,0.1393,66996.0,66992.0,0.15]
[1718297958281,0.1393,66996.0,66992.0,0.05]
[1718297958688,0.1393,66996.0,66992.0,0.19927]
[1718297958928,0.1393,66996.0,66995.0,0.149264]
[1718297959133,0.1393,66996.0,66992.0,0.05]
[1718297959134,0.1393,66996.0,66992.0,0.19927]
[1718297959337,0.1393,66996.0,66993.0,0.249268]
[1718297959504,0.1393,66996.0,66994.0,0.149266]
[1718297959719,0.1393,66996.0,66992.0,0.05]
[1718297960742,0.1393,66996.0,66993.0,0.149269]
[1718297961010,0.1393,66996.0,66992.0,0.053]
[1718297961174,0.1393,66996.0,66978.0,0.11822791]
[1718297961175,0.09,66991.0,66981.0,0.04415395]
[1718297961396,0.149292,66983.0,66981.0,0.04415395]
[1718297961600,0.44951993,66990.0,66981.0,0.04415395]
[1718297961601,0.149287,66985.0,66981.0,0.04415395]
[1718297961800,0.14431993,66985.0,66981.0,0.04415395]
[1718297962005,0.29360793,66985.0,66981.0,0.04415395]
[1718297962608,0.14431993,66985.0,66981.0,0.04415395]
[1718297962848,0.29360893,66985.0,66981.0,0.04415395]
[1718297962996,0.280093,66982.0,66981.0,0.04415395]
[1718297963202,0.58751293,66982.0,66981.0,0.04415395]
[1718297964363,0.001,66985.0,66983.0,0.14929]
[1718297964364,0.002,66985.0,66983.0,0.14929]
[1718297964570,0.001,66985.0,66984.0,0.12215996]
[1718297964775,0.1369,66989.0,66986.0,0.149284]
[1718297965509,0.1369,66989.0,66985.0,0.06]
[1718297965510,0.1369,66989.0,66985.0,0.209284]
[1718297965734,0.1369,66989.0,66985.0,0.05]
[1718297966346,0.1367431,66989.0,66985.0,0.05]
[1718297966563,0.1210431,66989.0,66985.0,0.05]
[1718297966772,0.1210431,66989.0,66988.0,0.14928]
[1718297967126,0.1210431,66989.0,66985.0,0.209284]
[1718297967325,0.1210431,66989.0,66987.0,0.14928]
[1718297967622,0.1210431,66989.0,66985.0,0.209286]
[1718297967796,0.003,66989.0,66988.0,0.19928]
[1718297967992,0.1739,66990.0,66986.0,0.05]
[1718297968420,0.1739,66990.0,66984.0,0.05]
[1718297968421,0.149282,66988.0,66984.0,0.05]
[1718297968597,0.001,66989.0,66984.0,0.05]
[1718297968918,0.149298,66980.0,66979.0,0.05]
[1718297969323,0.149302,66979.0,66975.0,0.16]
[1718297969527,0.09,66987.0,66976.0,0.05]
[1718297969679,0.149301,66979.0,66978.0,0.05]
[1718297970025,0.1586,66985.0,66975.0,0.05]
[1718297970259,0.149307,66976.0,66974.0,0.04415395]
[1718297970436,0.149309,66975.0,66974.0,0.04415395]
[1718297971384,0.1493,66979.0,66975.0,0.008]
[1718297971551,0.29361993,66979.0,66975.0,0.008]
[1718297971755,0.1586,66985.0,66978.0,0.149302]
[1718297971959,0.1586,66985.0,66981.0,0.05]
[1718297972168,0.1586,66985.0,66982.0,0.01]
[1718297972380,0.1586,66985.0,66982.0,0.05]
[1718297972534,0.1586,66985.0,66982.0,0.06]
[1718297972734,0.1586,66985.0,66982.0,0.199292]
[1718297973558,0.1586,66985.0,66982.0,0.05]
[1718297974520,0.1596,66985.0,66982.0,0.05]
[1718297974941,0.1586,66985.0,66982.0,0.05]
[1718297975089,0.1586,66985.0,66976.0,0.05]
[1718297975293,0.1586,66985.0,66973.0,0.1]
[1718297975294,0.149311,66974.0,66973.0,0.1]
[1718297975488,0.320116,66972.0,66971.0,0.15]
[1718297975689,0.320116,66972.0,66970.0,0.05]
[1718297975690,0.149318,66971.0,66970.0,0.05]
[1718297975946,0.1708,66972.0,66970.0,0.05]
[1718297976145,0.1708,66972.0,66971.0,0.05]
[1718297976835,0.1708,66972.0,66968.0,0.11]
[1718297976836,0.14932,66971.0,66969.0,0.05]
[1718297977067,0.149322,66969.0,66966.0,0.00085]
[1718297977276,0.1708,66972.0,66966.0,0.00085]
[1718297977480,0.31511993,66972.0,66966.0,0.00085]
[1718297977900,0.31511993,66972.0,66966.0,0.10085]
[1718297978107,0.31511993,66972.0,66967.0,0.1]
[1718297978314,0.31511993,66972.0,66970.0,0.002]
[1718297978689,0.31511993,66972.0,66966.0,0.00085]
[1718297978690,0.46543593,66972.0,66966.0,0.00885]
[1718297979071,0.46543593,66972.0,66966.0,0.01585]
[1718297979460,0.149323,66969.0,66966.0,0.00885]
[1718297980001,0.149327,66967.0,66966.0,0.00085]
[1718297980385,0.29364693,66967.0,66966.0,0.00085]
[1718297980709,0.67864693,66967.0,66966.0,0.00085]
[1718297981062,0.67864693,66967.0,66966.0,0.00685]
[1718297981206,0.58864693,66967.0,66966.0,0.01385]
[1718297981413,0.58964693,66967.0,66966.0,0.01385]
[1718297981590,0.58864693,66967.0,66966.0,0.00085]
[1718297982167,0.69164693,66967.0,66966.0,0.00285]
[1718297982551,0.74164693,66967.0,66966.0,0.00285]
[1718297983035,1.24164693,66967.0,66966.0,0.00285]
[1718297983468,1.38526162,66967.0,66966.0,0.00285]
[1718297983648,0.149358,66953.0,66952.0,0.00038971]
[1718297983803,0.442358,66953.0,66952.0,0.00038971]
[1718297984041,0.58667793,66953.0,66952.0,0.00038971]
[1718297984881,0.58667793,66953.0,66952.0,0.00738971]
[1718297984882,0.67667793,66953.0,66952.0,0.00738971]
[1718297985077,0.58667793,66953.0,66952.0,0.00738971]
[1718297985303,0.58767793,66953.0,66952.0,0.01538971]
[1718297985655,0.58767793,66953.0,66952.0,0.00838971]
[1718297986059,0.67767793,66953.0,66952.0,0.00838971]
[1718297986754,0.67667793,66953.0,66952.0,0.00038971]
[1718297986985,0.149387,66940.0,66939.0,0.05]
[1718297987397,0.149383,66943.0,66939.0,0.05]
[1718297987623,0.14431993,66947.0,66936.0,0.15]
[1718297987849,0.149394,66937.0,66936.0,0.15]
[1718297988054,0.149394,66937.0,66936.0,0.1]
[1718297988269,0.1357,66939.0,66936.0,0.1]
[1718297988477,0.149394,66937.0,66936.0,0.1]
[1718297988686,0.1357,66939.0,66934.0,0.05]
[1718297988895,0.149398,66936.0,66933.0,0.05]
[1718297989219,0.149398,66936.0,66930.0,0.01]
[1718297989220,0.28001993,66939.0,66931.0,0.05]
[1718297989423,0.14431993,66938.0,66932.0,0.01]
[1718297989854,0.29371393,66938.0,66932.0,0.01]
[1718297990026,0.149395,66937.0,66931.0,0.05]
[1718297990229,0.09,66947.0,66929.0,0.26935592]
[1718297990230,0.05,66953.0,66940.0,0.05]
[1718297990493,0.1359,66955.0,66952.0,0.149359]
[1718297990608,0.28021993,66955.0,66949.0,0.05]
[1718297991586,0.28021993,66955.0,66952.0,0.149359]
[1718297991741,0.28321993,66955.0,66949.0,0.05]
[1718297992363,0.28321993,66955.0,66943.0,0.07215996]
[1718297992364,0.003,66955.0,66954.0,0.149356]
[1718297992586,0.003,66955.0,66954.0,0.209356]
[1718297992957,0.003,66955.0,66954.0,0.508068]
[1718297993188,0.003,66955.0,66952.0,0.06]
[1718297993390,0.003,66955.0,66953.0,0.05]
[1718297993585,0.003,66955.0,66952.0,0.01]
[1718297993586,0.149349,66958.0,66954.0,0.05]
[1718297993794,0.149342,66961.0,66954.0,0.05]
[1718297993967,0.149342,66961.0,66955.0,0.159353]
[1718297993968,0.14431993,66961.0,66955.0,0.159353]
[1718297994755,0.007,66958.0,66957.0,0.05]
[1718297994955,0.007,66958.0,66957.0,0.52799292]
[1718297995104,0.007,66958.0,66957.0,1.06159192]
[1718297995310,0.007,66958.0,66957.0,0.76289292]
[1718297995506,0.007,66958.0,66957.0,0.46419392]
[1718297995708,0.007,66958.0,66957.0,0.82483362]
[1718297996711,0.19182421,66975.0,66966.0,0.05]
[1718297996912,0.149321,66970.0,66966.0,0.05]
[1718297997113,0.14431993,66974.0,66966.0,0.05]
[1718297997114,0.149313,66973.0,66966.0,0.05]
[1718297997404,0.14431993,66972.0,66966.0,0.05]
[1718297997759,0.14431993,66972.0,66968.0,0.01]
[1718297998542,0.002,66973.0,66970.0,0.01]
[1718297999197,0.002,66973.0,66968.0,0.01]
[1718297999409,0.002,66973.0,66969.0,0.01]
[1718297999778,0.1733,66975.0,66967.0,0.05]
[1718297999991,0.007,66973.0,66970.0,0.001]
[1718298000191,0.004,66972.0,66970.0,0.001]
[1718298000548,0.14431993,66974.0,66969.0,0.01]
[1718298000878,0.14431993,66974.0,66967.0,0.199326]
[1718298001087,0.14431993,66974.0,66969.0,0.001]
[1718298001088,0.14932,66970.0,66969.0,0.001]
[1718298001283,0.67953993,66970.0,66969.0,0.001]
[1718298001487,0.1641,66963.0,66952.0,0.05]
[1718298001878,0.1641,66963.0,66948.0,0.01]
[1718298001879,0.1318,66961.0,66948.0,0.06]
[1718298002087,0.149356,66955.0,66948.0,0.05]
[1718298002299,0.1318,66961.0,66948.0,0.05]
[1718298002300,0.14431993,66954.0,66948.0,0.05]
[1718298002512,0.14431993,66954.0,66946.0,0.05]
[1718298002919,0.1318,66961.0,66948.0,0.05]
[1718298003124,0.14431993,66960.0,66956.0,0.149349]
[1718298003327,0.14431993,66960.0,66952.0,0.057]
[1718298003328,0.14431993,66960.0,66959.0,0.149345]
[1718298003717,0.1318,66961.0,66950.0,0.05]
[1718298003973,0.1318,66961.0,66946.0,0.05]
[1718298003974,0.008,66954.0,66946.0,0.05]
[1718298004181,0.14431993,66953.0,66947.0,0.06195074]
[1718298004389,0.008,66954.0,66947.0,0.06195074]
[1718298004390,0.14831993,66954.0,66953.0,0.149358]
[1718298004596,0.004,66954.0,66953.0,0.159358]
[1718298004804,0.004,66954.0,66953.0,0.149358]
[1718298005010,0.004,66954.0,66953.0,0.209358]
[1718298005215,0.004,66954.0,66953.0,0.199358]
[1718298005393,0.00028,66954.0,66953.0,0.199358]
[1718298006736,0.00428,66954.0,66953.0,0.199358]
[1718298007050,0.00528,66954.0,66953.0,0.22930292]
[1718298007247,0.00528,66954.0,66953.0,0.62801992]
[1718298007466,0.00528,66954.0,66953.0,0.92673692]
[1718298007675,0.00428,66954.0,66953.0,0.92673692]
[1718298008010,0.00428,66954.0,66953.0,0.62801992]
[1718298008011,0.00828,66954.0,66953.0,0.62801992]
[1718298008959,0.00828,66954.0,66953.0,0.92673692]
[1718298009144,0.00428,66954.0,66953.0,0.92673692]
[1718298009343,0.00428,66954.0,66953.0,0.305358]
[1718298009566,0.00128,66954.0,66953.0,0.305358]
[1718298009776,0.00128,66954.0,66953.0,0.63401992]
[1718298009980,0.00028,66954.0,66953.0,0.62801992]
[1718298010191,0.00028,66954.0,66953.0,0.32930292]
[1718298010390,0.00128,66954.0,66953.0,0.33530292]
[1718298010564,0.00128,66954.0,66953.0,0.305358]
[1718298010946,0.00028,66954.0,66953.0,0.1]
[1718298011140,0.00028,66954.0,66953.0,0.006]
[1718298011365,0.286436,66954.0,66953.0,0.006]
[1718298011691,0.43075593,66954.0,66953.0,0.006]
[1718298012136,0.28139993,66954.0,66953.0,0.006]
[1718298012308,0.00128,66954.0,66953.0,0.056]
[1718298012672,0.00128,66954.0,66953.0,0.059]
[1718298012804,0.00128,66954.0,66953.0,0.83573692]
[1718298013006,0.00128,66954.0,66953.0,0.93573692]
[1718298013209,0.00028,66954.0,66953.0,1.492633]
[1718298013408,0.00128,66954.0,66953.0,1.27207596]
[1718298013612,0.2905,66973.0,66965.0,0.05]
[1718298013820,0.14431993,66972.0,66965.0,0.19933]
[1718298015983,0.15231993,66972.0,66965.0,0.20033]
[1718298017181,0.15231993,66972.0,66966.0,0.149329]
[1718298017406,0.15231993,66972.0,66965.0,0.051]
[1718298017582,0.16031993,66972.0,66965.0,0.052]
[1718298018194,0.14431993,66972.0,66965.0,0.05]
[1718298018401,0.14431993,66972.0,66965.0,0.199331]
[1718298018618,0.16531993,66972.0,66966.0,0.001]
[1718298018789,0.15531993,66972.0,66966.0,0.001]
[1718298019274,0.16331993,66972.0,66966.0,0.001]
[1718298019477,0.15531993,66972.0,66966.0,0.001]
[1718298019791,0.16731993,66972.0,66966.0,0.002]
[1718298019994,0.15631993,66972.0,66966.0,0.001]
[1718298020445,0.16431993,66972.0,66966.0,0.03094492]
[1718298020750,0.16431993,66972.0,66966.0,0.001]
[1718298021152,0.15631993,66972.0,66966.0,0.001]
[1718298021577,0.16731993,66972.0,66966.0,0.002]
[1718298022135,0.149327,66967.0,66966.0,0.002]
[1718298022348,0.29364693,66967.0,66966.0,0.002]
[1718298022581,0.113,66972.0,66966.0,0.002]
[1718298022582,0.023,66972.0,66971.0,0.497954]
[1718298023025,0.023,66972.0,66971.0,0.45802124]
[1718298023246,0.011,66972.0,66971.0,0.75665724]
[1718298023452,0.011,66972.0,66971.0,0.77570775]
[1718298023950,0.05,66986.0,66977.0,0.149303]
[1718298024200,0.05,66986.0,66977.0,0.05]
[1718298024201,0.14431993,66985.0,66977.0,0.05]
[1718298024440,0.14431993,66985.0,66979.0,0.05]
[1718298024670,0.14431993,66985.0,66980.0,0.01]
[1718298024950,0.2925,66987.0,66980.0,0.149296]
[1718298025205,0.14431993,66986.0,66982.0,0.149292]
[1718298025460,0.14531993,66986.0,66979.0,0.199299]
[1718298025692,0.14431993,66986.0,66980.0,0.149298]
[1718298026214,0.007,66985.0,66980.0,0.150298]
[1718298026428,0.14431993,66986.0,66980.0,0.149298]
[1718298026638,0.14431993,66986.0,66979.0,0.05]
[1718298026864,0.31141186,66987.0,66985.0,0.149287]
[1718298027105,0.45573179,66987.0,66980.0,0.011]
[1718298027343,0.45573179,66987.0,66985.0,0.149287]
[1718298027557,0.45573179,66987.0,66982.0,0.149291]
[1718298027776,0.45573179,66987.0,66980.0,0.01]
[1718298027989,0.45573179,66987.0,66985.0,0.149287]
[1718298027990,0.01,66986.0,66985.0,0.149287]
[1718298028194,0.005,66986.0,66985.0,0.149287]
[1718298028606,0.31141186,66987.0,66986.0,0.02994492]
[1718298028607,0.013,66987.0,66986.0,0.02994492]
[1718298028810,0.013,66987.0,66986.0,0.149284]
[1718298029065,0.01900256,66989.0,66988.0,0.14928]
[1718298029305,0.00093501,66989.0,66988.0,0.82634492]
[1718298029767,0.00093501,66989.0,66988.0,0.50784]
[1718298030215,0.00093501,66989.0,66988.0,0.82634492]
[1718298030417,0.00093501,66989.0,66988.0,0.52778492]
[1718298030559,0.00093501,66989.0,66988.0,0.82634492]
[1718298030773,0.00093501,66989.0,66988.0,1.00058485]
[1718298030976,0.00093501,66989.0,66988.0,1.39547331]
[1718298031361,0.00093501,66989.0,66988.0,1.40547331]
[1718298031627,0.00093501,66989.0,66988.0,1.40634728]
[1718298031994,0.01093501,66989.0,66988.0,1.40729777]
[1718298032169,0.00093501,66989.0,66988.0,1.38855331]
[1718298032354,0.01093501,66989.0,66988.0,1.70585777]
[1718298032571,0.01093501,66989.0,66988.0,1.71803331]
[1718298032798,0.01193501,66989.0,66988.0,1.72703331]
[1718298033011,0.01193501,66989.0,66988.0,1.14524877]
[1718298033012,0.01093501,66989.0,66988.0,1.14524877]
[1718298033237,0.01093501,66989.0,66988.0,1.39647331]
[1718298033441,0.01093501,66989.0,66988.0,0.80302485]
[1718298033664,0.01093501,66989.0,66988.0,1.10158485]
[1718298034088,0.00093501,66989.0,66988.0,1.10058485]
[1718298034279,0.00093501,66989.0,66988.0,0.65770492]
[1718298034720,0.00093501,66989.0,66988.0,0.95626492]
[1718298035131,0.00193501,66989.0,66988.0,1.26582492]
[1718298035329,0.00293501,66989.0,66988.0,1.27382492]
[1718298035561,0.00193501,66989.0,66988.0,0.96426492]
[1718298036079,0.00193501,66989.0,66988.0,0.97526492]
[1718298036080,0.00293501,66989.0,66988.0,0.97526492]
[1718298036501,0.00193501,66989.0,66988.0,1.26282492]
[1718298036731,0.00193501,66989.0,66988.0,0.96426492]
[1718298036931,0.00193501,66989.0,66988.0,0.158]
[1718298037142,0.00093501,66989.0,66988.0,0.29928]
[1718298037569,0.00093501,66989.0,66988.0,0.008]
[1718298037570,0.00193501,66989.0,66988.0,0.008]
[1718298037969,0.15221301,66989.0,66988.0,0.018]
[1718298038169,0.15121301,66989.0,66988.0,0.01]
[1718298038671,0.15121301,66989.0,66988.0,0.008]
[1718298039108,0.45203294,66989.0,66988.0,0.008]
[1718298039318,0.54203294,66989.0,66988.0,0.008]
[1718298039533,0.66263294,66989.0,66988.0,0.017]
[1718298039960,0.66163294,66989.0,66988.0,0.008]
[1718298040371,0.42235494,66989.0,66988.0,0.008]
[1718298040599,0.27703501,66989.0,66984.0,0.05]
[1718298040819,0.27703501,66989.0,66988.0,0.14928]
[1718298041035,0.28703501,66989.0,66988.0,0.15028]
[1718298041470,0.27703501,66989.0,66988.0,0.14928]
[1718298041723,0.15743501,66989.0,66988.0,0.14928]
[1718298041934,0.00193501,66989.0,66988.0,0.14928]
[1718298042137,0.00193501,66989.0,66988.0,0.15028]
[1718298042138,0.01193501,66989.0,66988.0,0.15028]
[1718298042554,0.01093501,66989.0,66988.0,0.15028]
[1718298042769,0.00093501,66989.0,66988.0,0.19928]
[1718298043204,0.00593501,66989.0,66988.0,0.49884]
[1718298043416,0.00093501,66989.0,66988.0,0.49784]
[1718298043897,0.00393501,66989.0,66988.0,0.50784]
[1718298044114,0.00393501,66989.0,66988.0,0.82634492]
[1718298044345,0.00393501,66989.0,66988.0,1.33321913]
[1718298044346,0.00593501,66989.0,66988.0,1.33321913]
[1718298044547,0.00593501,66989.0,66988.0,0.73609913]
[1718298044761,0.00393501,66989.0,66988.0,1.17897906]
[1718298044967,0.00393501,66989.0,66988.0,1.21972754]
[1718298045187,0.00193501,66989.0,66988.0,1.21972754]
[1718298045392,0.00193501,66989.0,66988.0,0.95971906]
[1718298045562,0.00293501,66989.0,66988.0,0.95971906]
[1718298045805,0.00293501,66989.0,66988.0,1.25827906]
[1718298046016,0.00293501,66989.0,66988.0,1.27602754]
[1718298046572,0.00293501,66989.0,66988.0,1.25827906]
[1718298047581,0.00293501,66989.0,66988.0,0.15]
[1718298047779,0.00293501,66989.0,66988.0,0.05]
[1718298048294,0.00293501,66989.0,66988.0,0.19928]
[1718298048513,0.00293501,66989.0,66988.0,0.15]
[1718298049334,0.26163501,66989.0,66988.0,0.1]
[1718298049460,0.26163501,66989.0,66986.0,0.05]
[1718298049665,0.26163501,66989.0,66988.0,0.05]
[1718298049666,0.41091401,66989.0,66988.0,0.05]
[1718298049873,0.41091301,66989.0,66988.0,0.05]
[1718298050206,0.40991301,66989.0,66986.0,0.05]
[1718298050438,0.26063501,66989.0,66987.0,0.05]
[1718298050650,0.00093501,66989.0,66987.0,0.05]
[1718298050798,0.00093501,66989.0,66987.0,0.15]
[1718298051009,0.00093501,66989.0,66988.0,0.001]
[1718298051624,0.00093501,66989.0,66985.0,0.00085]
[1718298051625,0.00093501,66989.0,66986.0,0.05]
[1718298051819,0.149282,66987.0,66986.0,0.05]
[1718298052020,0.286384,66986.0,66985.0,0.00085]
[1718298052313,0.399284,66986.0,66985.0,0.00085]
[1718298052960,0.54360393,66986.0,66985.0,0.00085]
[1718298053558,0.54360393,66986.0,66985.0,0.00185]
[1718298053559,0.55260393,66986.0,66985.0,0.00185]
[1718298053931,0.009,66986.0,66985.0,0.00185]
[1718298054152,0.009,66986.0,66985.0,0.201137]
[1718298055629,0.01974138,66989.0,66986.0,0.05]
[1718298057447,0.02974138,66989.0,66986.0,0.051]
[1718298058247,0.02974138,66989.0,66986.0,0.001]
[1718298058467,0.149282,66987.0,66986.0,0.001]
[1718298058666,0.149282,66987.0,66986.0,0.002]
[1718298059398,0.149282,66987.0,66986.0,0.001]
[1718298059599,0.29360193,66987.0,66986.0,0.001]
[1718298059802,0.30360193,66987.0,66986.0,0.002]
[1718298060391,0.39360193,66987.0,66986.0,0.002]
[1718298060616,0.65080193,66987.0,66986.0,0.002]
[1718298060826,0.89530193,66987.0,66986.0,0.002]
[1718298062061,0.89530193,66987.0,66986.0,0.001]
[1718298062294,0.2522,66968.0,66966.0,0.05]
[1718298063004,0.2522,66968.0,66963.0,0.1]
[1718298063005,0.149328,66967.0,66963.0,0.1]
[1718298063221,0.149328,66967.0,66966.0,0.05]
[1718298063440,0.2522,66968.0,66966.0,0.05]
[1718298063643,0.114,66972.0,66966.0,0.05]
[1718298063855,0.002,66968.0,66966.0,0.051]
[1718298064083,0.002,66968.0,66966.0,0.151]
[1718298064322,0.001,66968.0,66967.0,0.60008588]
[1718298064548,0.001,66968.0,66967.0,1.74626831]
[1718298064763,0.001,66968.0,66967.0,1.75402995]
[1718298064982,0.001,66968.0,66967.0,1.78040647]
[1718298065196,0.001,66968.0,66967.0,1.80247555]
[1718298065418,0.001,66968.0,66967.0,1.43761431]
[1718298065862,0.001,66968.0,66967.0,1.49951553]
[1718298066092,0.001,66968.0,66967.0,1.68114148]
[1718298066304,0.001,66968.0,66967.0,2.18636456]
[1718298066515,0.01805583,66987.0,66984.0,0.05]
[1718298066982,0.00093501,66989.0,66984.0,0.05]
[1718298067183,0.01846221,66989.0,66985.0,0.149287]
[1718298067400,0.00093501,66989.0,66985.0,0.149287]
[1718298067601,0.00093501,66989.0,66988.0,0.14928]
[1718298067800,0.00093501,66989.0,66987.0,0.05]
[1718298068641,0.00093501,66989.0,66981.0,0.298588]
[1718298068642,0.00093501,66989.0,66988.0,0.52778492]
[1718298068849,0.00093501,66989.0,66988.0,0.88825974]
[1718298069124,0.00093501,66989.0,66988.0,0.26119482]
[1718298069554,0.00093501,66989.0,66988.0,0.26119506]